Cogmind - Beta 13 @@@ ROGUE MODE // 2024.05.04 @ 17:17:08 Player: Jason Result: Destroyed by as-88542 with Assembled Blade Performance ------------- Evolutions (0) 0 Regions Visited (2) 400 Robots Destroyed (19) 95 Value Destroyed (507) 507 Prototype IDs (0) 0 Alien Tech Used (0) 0 Bonus (0) 0 TOTAL SCORE: 1002 Bonus ------- None Cogmind --------- Core Integrity 0/250 Matter 123/300 Energy 220/250 System Corruption 5% Temperature Cool (76) Movement Walking (190) Ox1 Location -10/Mines Parts ------- > --- POWER (1) -------- Ion Engine > --- PROPULSION (2) --- Improved Aluminum Leg Improved Aluminum Leg > --- UTILITY (2) ------ Small Storage Unit Light Armor Plating > --- WEAPON (2) ------- Particle Gun > --- INVENTORY (8) ---- Ion Engine Structural Scanner Terrain Scanner Assault Rifle Mining Laser Peak State ------------ > --- POWER ------------ Ion Engine > --- PROPULSION ------- Light Treads Light Treads > --- UTILITY ---------- Small Storage Unit Structural Scanner > --- WEAPON ----------- Particle Gun Assault Rifle > --- INVENTORY -------- Ion Engine Improved Aluminum Leg Improved Aluminum Leg Signal Interpreter Terrain Scanner Light Armor Plating Grenade Launcher Mining Laser [Rating: 9] Favorites ----------- Power Ion Engine Engine Ion Engine Propulsion Light Treads Treads Light Treads Leg Improved Aluminum Leg Utility Small Storage Unit Device Structural Scanner Storage Small Storage Unit Processor Signal Interpreter Protection Light Armor Plating Weapon Assault Rifle Energy Gun Particle Gun Ballistic Gun Assault Rifle Launcher Grenade Launcher Build | -11 -10 -10 ------- Run | Yrd Mat Min Slots Evolved . | . . . Power . | . . . Propulsion . | . . . Utility . | . . . Weapon . | . . . Parts Attached 24 | 8 8 8 Power 5 | 2 3 . Engine 5 | 2 3 . Core . | . . . Reactor . | . . . Propulsion 5 | 2 1 2 Treads 3 | 2 1 . Leg 2 | . . 2 Wheel . | . . . Hover . | . . . Flight . | . . . Utility 4 | 1 2 1 Device 1 | . 1 . Storage 1 | 1 . . Processor 1 | . 1 . Hackware . | . . . Protection 1 | . . 1 Artifact . | . . . Weapon 10 | 3 2 5 Energy Gun 1 | . 1 . Energy Cannon . | . . . Ballistic Gun 5 | 3 . 2 Ballistic Cannon . | . . . Launcher 4 | . 1 3 Special Weapon . | . . . Impact Weapon . | . . . Slashing Weapon . | . . . Piercing Weapon . | . . . Special Melee Weapon . | . . . Unidentified Prototypes . | . . . Parts Lost 4 | . 1 3 Power . | . . . Propulsion 2 | . . 2 Utility . | . . . Weapon 2 | . 1 1 Highest Loss Streak 2 | . 1 2 To Critical Strikes . | . . . Average Slot Usage (%) 97 | . 97 99 Engine 14 | . 14 14 Treads 24 | . 27 16 Leg 2 | . . 10 Device 7 | . 10 . Storage 14 | . 14 14 Processor 4 | . 1 14 Energy Gun 6 | . 3 14 Ballistic Gun 21 | . 24 12 Naked Turns . | . . . Heaviest Build 16 | 14 16 16 Greatest Support 40 | 40 40 40 Greatest Overweight (x) 1 | 1 . . Average Overweight (x) . | . . . Largest Inventory Capacity 8 | 8 8 8 Average Capacity 7 | 6 8 8 Most Carried 8 | 4 8 8 Average Carried 6 | 3 7 7 Final Capacity 8 | 8 8 8 Final Carried 8 | 4 8 5 Class Distribution -------------------- 100% | Mutant Dominant Class ---------------- Mutant | -10/Materials Mutant | -10/Mines Resources | -11 -10 -10 ----------- Run | Yrd Mat Min Matter Collected 661 | 179 390 92 Remotely . | . . . Salvage Created 520 | . 387 133 Parts 29 | . 19 10 Haulers Intercepted . | . . . Recyclers Shooed . | . . . Parts Field Recycled . | . . . Retrieved Matter . | . . . Parts Self-Destructed . | . . . Prevented . | . . . Kills | -11 -10 -10 ------- Run | Yrd Mat Min Combat Hostiles Destroyed 21 | . 9 12 Guns 10 | . 8 2 AOE 11 | . 1 10 Classes Destroyed 5 | . 3 2 Builder 1 | . 1 . Watcher 1 | . 1 . Swarmer 6 | . . 6 Grunt 11 | . 9 2 Assembled 4 | . . 4 Best Kill Streak 5 | . 5 4 Combat Bots Only 4 | . 4 4 Max Kills in Single Turn 4 | . 1 4 Gunslinging . | . . . Exploded 4 | . 1 4 Melee . | . . . Uniques/NPCs Destroyed . | . . . Combat | -11 -10 -10 -------- Run | Yrd Mat Min Hostile Shots Fired 124 | . 67 57 Missed 33 | . 19 14 Damage Taken 1171 | . 626 545 Core 272 | . 105 167 Absorbed by Shields . | . . . Regen/Repaired (Parts) 85 | . 85 . Core Remaining (%) 100 | 100 . . Volleys Fired 55 | . 36 19 Largest 2 | . 2 2 Hottest 95 | . 85 95 Shots Fired 112 | . 75 37 Gun 100 | . 72 28 Cannon . | . . . Launcher 12 | . 3 9 Special . | . . . Kinetic 76 | . 67 9 Thermal 24 | . 5 19 Explosive 12 | . 3 9 Electromagnetic . | . . . Robot Hit Streak 12 | . 11 12 Robot Miss Streak 2 | . 2 2 Penetration Max . | . . . Secondary Targets 1 | . 1 . Max Gunslinging Chain 1 | . 1 . Shots Hit Robots 78 | . 59 19 Core Hits 49 | . 26 23 Critical Kills . | . . . Critical Parts Destroyed 2 | . 2 . Critical Strikes 3 | . 2 1 Burn 1 | . . 1 Destroy 2 | . 2 . Melee Attacks . | . . . Impact . | . . . Slashing . | . . . Piercing . | . . . Sneak Attacks . | . . . Combat Hostiles . | . . . Follow-up Attacks . | . . . Damage Inflicted 1793 | . 880 913 Guns 944 | . 718 226 Cannons . | . . . Explosions 843 | . 156 687 Melee . | . . . Ramming 6 | . 6 . Kinetic 759 | . 675 84 Thermal 185 | . 43 142 Explosive 843 | . 156 687 Electromagnetic . | . . . Impact . | . . . Slashing . | . . . Piercing . | . . . Highest Corruption 5 | . 5 5 Average Corruption 3 | . 2 5 Corruption Purged . | . . . Corruption Blocked . | . . . Effects 28 | . 16 12 Message Errors 4 | . . 4 Matter Fused 9 | . 7 2 Heat Flow Errors 4 | . 3 1 Energy Discharges 3 | . 1 2 Data Loss (minor) 4 | . 2 2 Misfires 3 | . 3 . Weapon Failures 1 | . . 1 Overload Shots . | . . . Overflow Damage 25 | . . 25 Projectiles . | . . . Explosions 25 | . . 25 Melee . | . . . Knockbacks . | . . . Impact . | . . . Kinetic . | . . . Secondary . | . . . Self-Inflicted Damage . | . . . Shots . | . . . Rammed 1 | . 1 . Targets Rammed 1 | . 1 . Kicked . | . . . Crushed . | . . . Highest Temperature 292 | . 261 292 Average Temperature 87 | . 67 102 Received Heat Transfer 602 | . 390 212 Siege Activations . | . . . Robots Corrupted . | . . . Combat Hostiles . | . . . Parts Fried . | . . . Impact Corruptions . | . . . Robots Melted . | . . . Combat Hostiles . | . . . Parts Melted 1 | . . 1 Heat Transferred 518 | . 111 407 Parts Sabotaged . | . . . Parts Stolen . | . . . Parts Stripped . | . . . Power Chain Reactions . | . . . Alert | -11 -10 -10 ------- Run | Yrd Mat Min Peak Influence 239 | . 131 239 Initial 19 | . . 19 Average 89 | . 54 213 Maximum Alert Level 1 | . . 1 Low Security (%) 80 | 100 100 23 Level 1 19 | . . 76 Level 2 . | . . . Level 3 . | . . . Level 4 . | . . . Level 5 . | . . . High Security . | . . . Max Security . | . . . Squads Dispatched 3 | . 3 . Investigation 3 | . 3 . Extermination . | . . . Reinforcement . | . . . Assault . | . . . Garrison . | . . . Intercept . | . . . Searches Triggered . | . . . Construction Impeded . | . . . Haulers Reinforced . | . . . Active Scanning Responses . | . . . Cargo Convoy Interrupts . | . . . Stealth | -11 -10 -10 --------- Run | Yrd Mat Min Distress Signals 1 | . 1 . Communications Jammed . | . . . Distress Signals . | . . . Times Spotted 39 | . 15 24 Peak Tracking Total 16 | . 5 16 Tactical Retreats 1 | . 1 . Traps | -11 -10 -10 ------- Run | Yrd Mat Min Traps Triggered 3 | . 3 . Indirectly . | . . . Trap Hack Attempts . | . . . Triggered . | . . . Disarmed . | . . . Reprogrammed . | . . . Reused . | . . . Traps Extracted . | . . . Installed . | . . . Triggered . | . . . Machines | -11 -10 -10 ---------- Run | Yrd Mat Min Machines Disabled . | . . . Max in Single Turn . | . . . Machines Repaired . | . . . Machines Dismantled . | . . . Machines Sabotaged . | . . . Overloaded Fab Kills . | . . . Hacking | -11 -10 -10 --------- Run | Yrd Mat Min Machines Accessed 3 | . 3 . Terminals 2 | . 2 . Fabricators . | . . . Repair Stations 1 | . 1 . Recycling Units . | . . . Scanalyzers . | . . . Garrison Access . | . . . Total Hacks 8 | . 8 . Successful 5 | . 5 . Failed 3 | . 3 . Catastrophic 1 | . 1 . Database Lockouts . | . . . Manual 3 | . 3 . Terminals 5 | . 5 . Fabricators . | . . . Repair Stations 3 | . 3 . Recycling Units . | . . . Scanalyzers . | . . . Garrison Access . | . . . Terminal Hacks 1 | . 1 . Locate Traps 1 | . 1 . Fabricator Hacks . | . . . Repair Station Hacks 3 | . 3 . Scan Component 2 | . 2 . Repair 1 | . 1 . Recycling Unit Hacks . | . . . Scanalyzer . | . . . Garrison Access Hacks . | . . . Unauthorized Hacks 1 | . 1 . Terminals 1 | . 1 . Botnet 1 | . 1 . Fabricators . | . . . Repair Stations . | . . . Recycling Units . | . . . Scanalyzers . | . . . Garrison Access . | . . . Data Cores Recovered . | . . . Used . | . . . Hacking Detections 3 | . 3 . Full Trace Events 3 | . 3 . Feedback Events . | . . . Feedback Blocked . | . . . Robot Schematics Acquired . | . . . Robots Built . | . . . Authchips . | . . . Time . | . . . Total Robot Build Rating . | . . . Part Schematics Acquired . | . . . Parts Built . | . . . Authchips . | . . . Time . | . . . Total Part Build Rating . | . . . Parts Repaired 1 | . 1 . Time 26 | . 26 . Parts Recycled . | . . . Recycled Matter . | . . . Retrieved Matter . | . . . Retrieved Components . | . . . Parts Scanalyzed . | . . . Part Schematics Acquired . | . . . Parts Damaged . | . . . Bothacking | -11 -10 -10 ------------ Run | Yrd Mat Min Used RIF Installer . | . . . Robots Hacked . | . . . Non-combat . | . . . Combat . | . . . Robot Hacks Applied . | . . . Relay Couplers Released . | . . . Fabnet Peak Effective % . | . . . Robots Rewired . | . . . Allies Hacked . | . . . Hacks Repelled . | . . . Allies | -11 -10 -10 -------- Run | Yrd Mat Min Total Allies . | . . . Largest Group . | . . . Highest-Rated Group . | . . . Highest-Rated Ally . | . . . Total Orders . | . . . Ally Attacks . | . . . Total Damage . | . . . Kills . | . . . Allies Corrupted . | . . . Allies Melted . | . . . Intel | -11 -10 -10 ------- Run | Yrd Mat Min Robot Analysis Total . | . . . Derelict Logs Recovered . | . . . Drone Launches . | . . . Drone Recoveries . | . . . Exploration | -11 -10 -10 ------------- Run | Yrd Mat Min Turns Passed 1512 | 117 1016 379 Spaces Moved 760 | 70 500 190 Core 8 | 8 . . Treads 752 | 62 500 190 Legs . | . . . Wheels . | . . . Hover . | . . . Flight . | . . . Fastest Speed 50 | 50 160 160 Average Speed 158 | 148 160 160 Slowest Speed 160 | 160 160 160 Overloaded Moves . | . . . Propulsion Burnouts . | . . . Robots Hopped . | . . . Cave-ins Triggered . | . . . Exploration Rate (%) 28 | 5 52 29 Regions Visited 2 Branch Regions 1 Pre-discovered Areas . | . . . Known Exits Taken 1 | . 1 . Unknown Exits Taken 1 | 1 . . Scrap Searched . | . . . Spaces Dug . | . . . Terrain Destroyed 71 | . 22 49 Melee . | . . . Projectile . | . . . AOE 71 | . 22 49 Terrain Rammed . | . . . Walls Destroyed . | . . . Machines Disabled . | . . . Actions | -11 -10 -10 --------- Run | Yrd Mat Min Total 950 | 79 647 224 Wait 93 | . 86 7 Move 758 | 69 499 190 Hop . | . . . Pick Up 12 | 2 10 . Fast Attach 8 | 6 2 . Attach 3 | . 1 2 Detach . | . . . Swap 13 | 2 5 6 Drop 7 | . 7 . Fire 55 | . 36 19 Melee . | . . . Ram . | . . . Kick . | . . . Crush 1 | . 1 . Escape Stasis . | . . . Rewire . | . . . Trap . | . . . Miscellaneous . | . . . Route ------- -11/Scrapyard -10/Materials (discovered 2 exits: *Mat / *Min) -10/Mines History --------- Turn | Location | Event 7 | -11/Scrapyard | Discovered new exit (range 16) 118 | -11/Scrapyard | Entered Materials 302 | -10/Materials | Build established: Mutant 502 | -10/Materials | Discovered new exit (range 16) 667 | -10/Materials | Repaired Lgt. Treads 991 | -10/Materials | Discovered new exit (range 15) 1045 | -10/Materials | Identified exit to Materials 1133 | -10/Materials | Identified exit to Mines 1134 | -10/Materials | Entered Mines 1172 | -10/Mines | Core integrity fell below 50% 1492 | -10/Mines | Assembled infested the area 1497 | -10/Mines | Assisted by a Guerilla fighting off Assembled 1512 | -10/Mines | Core integrity fell below 20% 1513 | -10/Mines | Destroyed by as-88542 with Assembled Blade Last Messages --------------- 01497_ A derelict emerges from the shadows: "You need to get out of here! I've been tracking a group of Assembled to figure out where they're coming from, and they're closing on this area, come on!" 01498_ HV Slug penetrates Wall. 01500_ System corrupted: Grenade Launcher failed to launch. 01503_ as-83139 suffers critical hit (Destroy). 01503_ as-83139 knocked back. 01505_ as-10971 knocked back. 01505_ ZD-ODM(h) destroyed. 01508_ as-37723 destroyed. 01508_ as-26952 destroyed. 01508_ as-71825 destroyed. 01508_ as-83139 destroyed. 01508_ Destroyed Asb. Hover Unit. 01509_ Lgt. Treads destroyed. 01511_ Grenade Launcher destroyed. 01512_ Discarded Signal Interpreter. Map ----- +----------------------------------------------------+ | ?????????????????????????????????????? | | ?????????????????????????????????????? | | ?????????????????????????????????????? | | ?????????????????????????????????????? | | ?????????????????????????????????????? | | ?????????????? ?????????????????????? | | ?????????????? #????????????????????? | | ?????????????? ????????????????????? | | ?????????????? ????????????????????? | | ?????????????? ????????????????????? | | ?????????????? ?????????????????????? | | ?????#####???# ????????????????????? | | ????## ### a ????????????????????? | | ????# a ?????????????????????? | | ????? ?????????????????????? | | ?????? ?????????????????????? | | ???????# ?????????????????????? | | ????????# ?????????????????????? | | ????????# % #?????????????????????? | | ????????# % ###???????????????????? | | ???????## a ##??????????????????? | | ???????# aa!% #??????????????????? | | ???????# a a #??????????????????? | | ???????## aaa ##??????????????????# | | ????????## a a###??????????????????## | | ?????????####@ #????????????????????# | | ????????????# #????????????????????# | | ????????????# #?????????????????????# | | ????????????# #?????????????????????# | | ????????????# ##############????????? | | ????????????# #????????? | | ????????????############### #????????? | | ?????????????????????????## ##???????? | | ????????????????????????## ##??##### | | ???????????????????????## #?## | | ??????????????????????## ### | | ?????????????????????## | | ?????????????????????# """ ## # ## | | ?????????????????????# """ ### ## ##? | | ?????????????????????# """ #?# ## #?? | | ?????????????????????## #?# ## #?? | | ??????????????????????## ### ## #?? | | ???????????????????????# #?? | | ???????????????????????## #########?? | | ????????????????????????###??????????? | | ?????????????????????????????????????? | | ?????????????????????????????????????? | | ?????????????????????????????????????? | | | | | +----------------------------------------------------+ Best States ------------- Heat Dissipation 25 Energy Generation 10 Energy Capacity 250 Matter Stores 300 Matter Capacity 300 Sight Range 16 Terrain Scan Density 10 Evasion (%) 40 Recoil Reduction 2 Item Schematics ----------------- None Robot Schematics ------------------ None Fabricated ------------ Nothing Alien Tech Used ----------------- None Achievements -------------- None Challenges ------------ None Game ------ Seed GammaWeightNanovents Manual? 0 Play Time 00:17:13 Cumulative 47.5 hours Start 2024.05.03 @ 22:05:21 End 2024.05.04 @ 17:17:08 Sessions 1 Manual Loads 0 Difficulty Rogue Special Mode None Game No. 45 Rogue 45 Adventurer 0 Explorer 0 Win Type - Total 0 Types 0/0/0/0/0/0/0/0/0 Lore% 20 Gallery% 30 Achievement% 22 Wizard Run 0 Options --------- Layout 2 ASCII 0 Keyboard 1 Movement Arrows Keybinds 0 Fullscreen 2 Font 24/Smallcaps Map View 50x44 Zoom Use 0% Tactical HUD 1 Map Filters NONE Filters NONE Steam 1 RUN: 4361b7cd-61b5-47b1-ad15-26ea6f661800